[Event "Kwalificatie NJK A Groningen"]
[Site "Hoogkerk, Netherlands"]
[Date "2023.02.18"]
[Round "4.4"]
[White "Van Den Berg, Mees"]
[Black "Alvares, Thomas"]
[Result "0-1"]
[TimeControl "55 min. + 10 sec./zet"]
[WhiteElo "1702"]
[BlackElo "1855"]

1. Nf3 {[%clk 00:55:10]} Nf6 {[%clk 00:55:07]} {[%emt 01:18:51]} 2. c4 {[%clk
00:55:23]} e6 {[%clk 00:55:06]} {[%emt 00:00:14]} 3. g3 {[%clk 00:55:27]} d5
{[%clk 00:55:01]} {[%emt 00:00:22]} 4. d4 {[%clk 00:55:33]} dxc4 {[%clk
00:54:40]} {[%emt 00:00:35]} 5. Bg2 {[%clk 00:55:39]} c5 {[%clk 00:54:40]} 6.
O-O {[%clk 00:55:39]} Nc6 {[%clk 00:53:57]} {[%emt 00:01:13]} 7. dxc5 {[%clk
00:55:47]} Qxd1 {[%clk 00:52:51]} {[%emt 00:01:22]} 8. Rxd1 {[%emt 00:00:11]}
Bxc5 {[%clk 00:52:40]} {[%emt 00:00:14]} 9. Nbd2 {[%clk 00:55:57]} {[%emt
00:00:04]} O-O {[%clk 00:51:31]} {[%emt 00:01:20]} 10. Nxc4 {[%clk 00:54:47]}
{[%emt 00:01:20]} Nd5 {[%clk 00:47:49]} {[%emt 00:03:52]} 11. a3 {[%clk
00:38:59]} {[%emt 00:15:59]} b5 {[%clk 00:42:32]} {[%emt 00:05:26]} 12. Nce5
{[%clk 00:35:09]} {[%emt 00:04:00]} Nxe5 {[%clk 00:39:38]} {[%emt 00:03:05]} 13.
Nxe5 {[%clk 00:35:11]} {[%emt 00:00:07]} Bb7 {[%clk 00:39:15]} {[%emt
00:00:33]} 14. Nd7 {[%clk 00:30:43]} {[%emt 00:04:38]} Rfc8 {[%clk 00:39:07]}
{[%emt 00:00:18]} 15. e4 {[%clk 00:29:10]} {[%emt 00:01:43]} Nf6 {[%clk
00:35:52]} {[%emt 00:03:25]} 16. Nxf6+ {[%clk 00:21:36]} {[%emt 00:07:45]} gxf6
{[%clk 00:35:59]} {[%emt 00:00:02]} 17. b4 {[%clk 00:21:33]} {[%emt 00:00:12]}
Bb6 {[%clk 00:33:54]} {[%emt 00:02:15]} 18. Rd7 {[%clk 00:18:12]} {[%emt
00:03:32]} Rc7 {[%clk 00:31:49]} {[%emt 00:02:16]} 19. Rxc7 {[%clk 00:15:48]}
{[%emt 00:02:33]} Bxc7 {[%clk 00:31:56]} {[%emt 00:00:02]} 20. Be3 {[%clk
00:13:30]} {[%emt 00:02:28]} a6 {[%clk 00:26:01]} {[%emt 00:06:05]} 21. Rc1
{[%clk 00:09:42]} {[%emt 00:03:59]} Bd8 {[%clk 00:24:20]} {[%emt 00:01:51]} 22.
Rd1 {[%clk 00:07:49]} {[%emt 00:02:03]} Kf8 {[%clk 00:22:27]} {[%emt 00:02:04]}
23. Rd7 {[%clk 00:05:43]} {[%emt 00:02:16]} Bc6 {[%clk 00:21:41]} {[%emt
00:00:55]} 24. Rd6 {[%clk 00:04:37]} {[%emt 00:01:16]} Rc8 {[%clk 00:15:08]}
{[%emt 00:06:43]} 25. e5 {[%clk 00:01:55]} {[%emt 00:02:52]} Bxg2 {[%clk
00:15:02]} {[%emt 00:00:16]} 26. Kxg2 {[%clk 00:02:00]} {[%emt 00:00:04]} Ra8
{[%clk 00:15:05]} {[%emt 00:00:07]} 27. f4 {[%clk 00:00:30]} {[%emt 00:01:41]}
fxe5 {[%clk 00:14:13]} {[%emt 00:01:03]} 28. fxe5 {[%clk 00:00:23]} {[%emt
00:00:17]} Bc7 {[%clk 00:13:46]} {[%emt 00:00:37]} 29. Rd7 {[%clk 00:00:21]}
{[%emt 00:00:11]} Bxe5 {[%clk 00:13:32]} {[%emt 00:00:24]} 30. Bc5+ {[%clk
00:00:23]} {[%emt 00:00:07]} Kg7 {[%clk 00:12:57]} {[%emt 00:00:46]} 31. Rd2
{[%clk 00:00:16]} {[%emt 00:00:16]} Kg6 {[%clk 00:10:53]} {[%emt 00:02:14]} 32.
Kf3 {[%clk 00:00:25]} {[%emt 00:00:01]} f5 {[%clk 00:08:18]} {[%emt 00:02:45]}
33. Re2 {[%clk 00:00:18]} {[%emt 00:00:18]} Kf6 {[%clk 00:08:02]} {[%emt
00:00:26]} 34. Be7+ {[%clk 00:00:16]} {[%emt 00:00:12]} Kxe7 {[%clk 00:08:09]}
{[%emt 00:00:03]} 35. Rxe5 {[%clk 00:00:25]} {[%emt 00:00:02]} Rc8 {[%clk
00:07:58]} {[%emt 00:00:20]} 36. Re3 {[%clk 00:00:33]} {[%emt 00:00:03]} Rc4
{[%clk 00:07:18]} {[%emt 00:00:49]} 37. Rd3 {[%clk 00:00:41]} {[%emt 00:00:02]}
e5 {[%clk 00:05:06]} {[%emt 00:02:22]} 38. Re3 {[%clk 00:00:49]} Ke6 {[%clk
00:04:13]} {[%emt 00:01:04]} 39. h3 {[%clk 00:00:58]} {[%emt 00:00:01]} h5
{[%clk 00:03:44]} {[%emt 00:00:39]} 40. Ke2 {[%clk 00:00:46]} {[%emt 00:00:23]}
e4 {[%clk 00:02:10]} {[%emt 00:01:43]} 41. Kd2 {[%clk 00:00:42]} {[%emt
00:00:14]} Ke5 {[%clk 00:02:13]} {[%emt 00:00:08]} 42. Re2 {[%clk 00:00:32]}
{[%emt 00:00:19]} Rd4+ {[%clk 00:01:35]} {[%emt 00:00:48]} 43. Ke3 {[%clk
00:00:24]} {[%emt 00:00:18]} Rd3+ {[%clk 00:01:38]} {[%emt 00:00:07]} 44. Kf2
{[%clk 00:00:33]} Rf3+ {[%clk 00:01:22]} {[%emt 00:00:26]} 45. Kg2 {[%clk
00:00:42]} {[%emt 00:00:01]} Rxa3 {[%clk 00:01:30]} {[%emt 00:00:02]} 46. Rc2
{[%clk 00:00:50]} {[%emt 00:00:01]} Rd3 {[%clk 00:01:07]} {[%emt 00:00:33]} 47.
Rc5+ {[%clk 00:00:53]} {[%emt 00:00:07]} Rd5 {[%clk 00:01:16]} {[%emt
00:00:02]} 48. Rc6 {[%clk 00:01:00]} {[%emt 00:00:03]} Rd6 {[%clk 00:00:58]}
{[%emt 00:00:28]} 49. Rc5+ {[%clk 00:01:03]} {[%emt 00:00:07]} Ke6 {[%clk
00:00:36]} {[%emt 00:00:32]} 50. Kf2 {[%clk 00:01:06]} {[%emt 00:00:07]} Rd2+
{[%clk 00:00:19]} {[%emt 00:00:27]} 51. Ke3 {[%clk 00:01:12]} {[%emt 00:00:03]}
Rd3+ {[%clk 00:00:20]} {[%emt 00:00:10]} 52. Kf2 {[%clk 00:01:16]} {[%emt
00:00:06]} Rd4 {[%clk 00:00:14]} {[%emt 00:00:16]} 53. Rc6+ {[%clk 00:01:21]}
{[%emt 00:00:05]} Ke5 {[%clk 00:00:20]} {[%emt 00:00:04]} 54. Rc5+ {[%clk
00:01:27]} {[%emt 00:00:04]} Kf6 {[%clk 00:00:15]} {[%emt 00:00:15]} 55. Rc6+
{[%clk 00:01:32]} {[%emt 00:00:05]} Kg5 {[%clk 00:00:18]} {[%emt 00:00:06]} 56.
Kg2 {[%clk 00:01:08]} {[%emt 00:00:35]} Rd2+ {[%clk 00:00:20]} {[%emt
00:00:08]} 57. Kg1 {[%clk 00:01:11]} {[%emt 00:00:07]} Rb2 {[%clk 00:00:13]}
{[%emt 00:00:17]} 58. Rxa6 {[%clk 00:01:12]} {[%emt 00:00:08]} Rxb4 {[%clk
00:00:22]} {[%emt 00:00:02]} 59. Kg2 {[%clk 00:01:21]} {[%emt 00:00:01]} Rb2+
{[%clk 00:00:31]} {[%emt 00:00:02]} 60. Kg1 {[%clk 00:01:29]} b4 {[%clk
00:00:34]} {[%emt 00:00:06]} 61. Rb6 {[%clk 00:01:31]} {[%emt 00:00:09]} h4
{[%clk 00:00:33]} {[%emt 00:00:11]} 62. gxh4+ {[%clk 00:01:05]} {[%emt
00:00:36]} Kxh4 {[%clk 00:00:41]} {[%emt 00:00:02]} 63. Rh6+ {[%clk 00:01:04]}
{[%emt 00:00:10]} Kg3 {[%clk 00:00:37]} {[%emt 00:00:15]} 64. Kf1 {[%clk
00:01:05]} {[%emt 00:00:09]} e3 {[%clk 00:00:26]} {[%emt 00:00:20]} 65. Rf6
{[%clk 00:00:46]} {[%emt 00:00:30]} f4 {[%clk 00:00:24]} {[%emt 00:00:12]} 66.
h4 {[%clk 00:00:39]} {[%emt 00:00:17]} Rf2+ {[%clk 00:00:19]} {[%emt 00:00:15]}
67. Ke1 {[%clk 00:00:33]} {[%emt 00:00:15]} Kxh4 {[%clk 00:00:26]} {[%emt
00:00:03]} 68. Rb6 {[%clk 00:00:30]} {[%emt 00:00:14]} Rb2 {[%clk 00:00:35]}
{[%emt 00:00:01]} 69. Re6 {[%clk 00:00:27]} {[%emt 00:00:14]} Kg3 {[%clk
00:00:25]} {[%emt 00:00:19]} 70. Rg6+ {[%clk 00:00:13]} {[%emt 00:00:24]} Kf3
{[%clk 00:00:31]} {[%emt 00:00:04]} 71. Kd1 {[%clk 00:00:13]} {[%emt 00:00:10]}
e2+ {[%clk 00:00:38]} {[%emt 00:00:03]} 0-1

[Event "Kwalificatie NJK A Groningen"]
[Site "Hoogkerk, Netherlands"]
[Date "2023.02.18"]
[Round "4.5"]
[White "Den Heijer, Rolinde"]
[Black "Jacobs, Yanick"]
[Result "1/2-1/2"]
[TimeControl "55 min. + 10 sec./zet"]
[WhiteElo "1831"]
[BlackElo "1652"]

1. e4 {[%clk 00:55:19]} {[%emt 00:00:01]} e5 {[%clk 00:54:49]} {[%emt
00:00:31]} 2. Nf3 {[%clk 00:55:24]} {[%emt 00:00:05]} Nf6 {[%clk 00:54:51]}
{[%emt 00:00:06]} 3. Nxe5 {[%clk 00:55:25]} {[%emt 00:00:09]} d6 {[%clk
00:54:47]} {[%emt 00:00:15]} 4. Nf3 {[%clk 00:55:27]} {[%emt 00:00:08]} Nxe4
{[%clk 00:54:41]} {[%emt 00:00:15]} 5. d4 {[%clk 00:55:32]} {[%emt 00:00:05]}
d5 {[%clk 00:54:36]} {[%emt 00:00:15]} 6. Bd3 {[%clk 00:55:36]} {[%emt
00:00:07]} Nc6 {[%clk 00:54:16]} {[%emt 00:00:30]} 7. O-O {[%clk 00:54:43]}
{[%emt 00:01:03]} Be7 {[%clk 00:54:19]} {[%emt 00:00:07]} 8. Re1 {[%clk
00:53:41]} {[%emt 00:01:12]} Bg4 {[%clk 00:54:22]} {[%emt 00:00:07]} 9. Bxe4
{[%clk 00:50:26]} {[%emt 00:03:24]} dxe4 {[%clk 00:54:00]} {[%emt 00:00:33]} 10.
Rxe4 {[%clk 00:50:29]} {[%emt 00:00:07]} Bxf3 {[%clk 00:53:49]} {[%emt
00:00:21]} 11. Qxf3 {[%clk 00:48:00]} {[%emt 00:02:39]} Nxd4 {[%clk 00:53:42]}
{[%emt 00:00:17]} 12. Qc3 {[%clk 00:47:14]} {[%emt 00:00:55]} Ne6 {[%clk
00:52:48]} {[%emt 00:01:05]} 13. Na3 {[%clk 00:46:43]} {[%emt 00:00:42]} O-O
{[%clk 00:43:06]} {[%emt 00:09:51]} 14. Bf4 {[%clk 00:41:05]} {[%emt 00:05:47]}
Nxf4 {[%clk 00:41:02]} {[%emt 00:02:14]} 15. Rxf4 {[%clk 00:41:04]} {[%emt
00:00:11]} Bf6 {[%clk 00:40:34]} {[%emt 00:00:39]} 16. Qb3 {[%clk 00:40:23]}
{[%emt 00:00:51]} Qd2 {[%clk 00:35:04]} {[%emt 00:05:39]} 17. Re4 {[%clk
00:35:57]} {[%emt 00:04:36]} Rfe8 {[%clk 00:32:51]} {[%emt 00:02:24]} 18. Nc4
{[%clk 00:34:38]} {[%emt 00:01:29]} Qd5 {[%clk 00:29:49]} {[%emt 00:03:11]} 19.
Rxe8+ {[%clk 00:33:47]} {[%emt 00:01:02]} Rxe8 {[%clk 00:29:48]} {[%emt
00:00:09]} 20. c3 {[%clk 00:29:08]} {[%emt 00:04:50]} h6 {[%clk 00:25:49]}
{[%emt 00:04:10]} 1/2-1/2

[Event "Kwalificatie NJK A Groningen"]
[Site "Hoogkerk, Netherlands"]
[Date "2023.02.18"]
[Round "4.6"]
[White "Bon, Gijs"]
[Black "Nitrauw, Peter"]
[Result "0-1"]
[TimeControl "55 min. + 10 sec./zet"]
[WhiteElo "1669"]
[BlackElo "1763"]

1. e4 {[%clk 00:55:16]} {[%emt 00:00:04]} c5 {[%clk 00:55:17]} {[%emt
00:00:04]} 2. Nf3 {[%clk 00:55:20]} {[%emt 00:00:05]} Nc6 {[%clk 00:55:19]}
{[%emt 00:00:08]} 3. c3 {[%clk 00:55:16]} {[%emt 00:00:14]} Nf6 {[%clk
00:55:10]} {[%emt 00:00:20]} 4. e5 {[%clk 00:54:58]} {[%emt 00:00:28]} Nd5
{[%clk 00:55:13]} {[%emt 00:00:06]} 5. d4 {[%clk 00:55:03]} {[%emt 00:00:05]}
cxd4 {[%clk 00:54:11]} {[%emt 00:01:13]} 6. cxd4 {[%clk 00:55:07]} {[%emt
00:00:06]} d6 {[%clk 00:54:08]} {[%emt 00:00:13]} 7. Bc4 {[%clk 00:53:13]}
{[%emt 00:02:04]} Nb6 {[%clk 00:53:23]} {[%emt 00:00:55]} 8. Bb3 {[%clk
00:52:23]} {[%emt 00:00:59]} dxe5 {[%clk 00:52:35]} {[%emt 00:00:59]} 9. dxe5
{[%clk 00:44:13]} {[%emt 00:08:20]} Qxd1+ {[%clk 00:52:25]} {[%emt 00:00:20]}
10. Bxd1 {[%clk 00:42:11]} {[%emt 00:02:11]} g6 {[%clk 00:51:17]} {[%emt
00:01:19]} 11. Bf4 {[%clk 00:39:37]} {[%emt 00:02:43]} Bg7 {[%clk 00:51:11]}
{[%emt 00:00:17]} 12. Bb3 {[%clk 00:38:06]} {[%emt 00:01:41]} Bf5 {[%clk
00:44:03]} {[%emt 00:07:18]} 13. O-O {[%clk 00:30:21]} {[%emt 00:07:54]} O-O
{[%emt 00:05:33]} 14. Nc3 {[%clk 00:27:37]} Bg4 {[%clk 00:40:02]} {[%emt
00:01:42]} 15. Rfe1 {[%clk 00:26:58]} {[%emt 00:00:49]} Bxf3 {[%clk 00:39:13]}
{[%emt 00:00:59]} 16. gxf3 {[%clk 00:27:03]} {[%emt 00:00:05]} Nd4 {[%clk
00:39:14]} {[%emt 00:00:10]} 17. Kg2 {[%clk 00:24:39]} {[%emt 00:02:33]} Nxb3
{[%clk 00:36:40]} {[%emt 00:02:44]} 18. axb3 {[%clk 00:24:32]} {[%emt
00:00:18]} a6 {[%clk 00:34:19]} {[%emt 00:02:31]} 19. Be3 {[%clk 00:11:21]}
{[%emt 00:13:20]} Nd7 {[%clk 00:33:52]} {[%emt 00:00:37]} 20. f4 {[%clk
00:10:52]} {[%emt 00:00:39]} Rac8 {[%clk 00:28:03]} {[%emt 00:05:59]} 21. Nd5
{[%clk 00:06:16]} {[%emt 00:04:46]} Rfe8 {[%clk 00:27:56]} {[%emt 00:00:18]} 22.
Rec1 {[%clk 00:05:55]} {[%emt 00:00:30]} Bf8 {[%clk 00:27:14]} {[%emt
00:00:52]} 23. Nb6 {[%clk 00:00:38]} {[%emt 00:05:27]} Nxb6 {[%clk 00:27:07]}
{[%emt 00:00:17]} 24. Bxb6 {[%clk 00:00:42]} {[%emt 00:00:06]} f6 {[%clk
00:23:42]} {[%emt 00:03:35]} 25. Rc4 {[%clk 00:00:11]} {[%emt 00:00:41]} Bg7
{[%clk 00:21:38]} {[%emt 00:02:14]} 26. e6 {[%clk 00:00:11]} {[%emt 00:00:10]}
f5 {[%clk 00:21:30]} {[%emt 00:00:18]} 27. Rac1 {[%clk 00:00:14]} {[%emt
00:00:07]} Rxc4 {[%clk 00:20:49]} {[%emt 00:00:52]} 28. Rxc4 {[%clk 00:00:23]}
{[%emt 00:00:01]} Bf6 {[%clk 00:12:54]} {[%emt 00:08:05]} 29. Rc7 {[%clk
00:00:11]} {[%emt 00:00:22]} Rd8 {[%clk 00:12:38]} {[%emt 00:00:25]} 30. Rd7
{[%clk 00:00:14]} {[%emt 00:00:07]} Rc8 {[%clk 00:11:41]} {[%emt 00:01:08]} 31.
Bd8 {[%emt 00:00:14]} Rb8 {[%emt 00:00:06]} 32. Rd6 {[%emt 00:00:02]} Rc8 33.
Rd7 {[%emt 00:00:04]} Rc7 {[%emt 00:00:13]} 0-1

[Event "Kwalificatie NJK A Groningen"]
[Site "Hoogkerk, Netherlands"]
[Date "2023.02.18"]
[Round "4.7"]
[White "Adams, Oscar"]
[Black "De Vries, Arjan"]
[Result "1-0"]
[TimeControl "55 min. + 10 sec./zet"]
[WhiteElo "1729"]
[BlackElo "1645"]

1. f4 {[%clk 00:55:18]} {[%emt 00:00:01]} Nf6 {[%clk 00:54:47]} {[%emt
00:00:33]} 2. Nf3 {[%clk 00:55:24]} {[%emt 00:00:05]} g6 {[%clk 00:54:43]}
{[%emt 00:00:14]} 3. b3 {[%clk 00:55:31]} {[%emt 00:00:03]} Bg7 {[%clk
00:54:35]} {[%emt 00:00:17]} 4. Bb2 {[%clk 00:55:41]} c6 {[%clk 00:53:54]}
{[%emt 00:00:52]} 5. e4 {[%clk 00:55:38]} {[%emt 00:00:13]} d5 {[%clk
00:53:32]} {[%emt 00:00:31]} 6. e5 {[%clk 00:55:41]} {[%emt 00:00:07]} Nh5
{[%clk 00:52:25]} {[%emt 00:01:18]} 7. g3 {[%clk 00:55:26]} {[%emt 00:00:25]}
Bg4 {[%clk 00:52:16]} {[%emt 00:00:19]} 8. Bg2 {[%clk 00:55:04]} {[%emt
00:00:32]} O-O {[%clk 00:51:01]} {[%emt 00:01:24]} 9. d3 {[%clk 00:54:11]}
{[%emt 00:01:04]} Bh6 {[%clk 00:50:30]} {[%emt 00:00:40]} 10. Qe2 {[%clk
00:53:29]} {[%emt 00:00:52]} d4 {[%clk 00:48:29]} {[%emt 00:02:12]} 11. Nbd2
{[%clk 00:53:29]} {[%emt 00:00:09]} c5 {[%clk 00:47:57]} {[%emt 00:00:43]} 12.
Qf2 {[%clk 00:53:28]} {[%emt 00:00:11]} Nc6 {[%clk 00:47:19]} {[%emt 00:00:47]}
13. Ne4 {[%clk 00:53:22]} {[%emt 00:00:16]} Nxf4 {[%clk 00:46:53]} {[%emt
00:00:37]} 14. gxf4 {[%clk 00:53:13]} {[%emt 00:00:18]} Bxf4 {[%clk 00:46:59]}
{[%emt 00:00:05]} 15. Qh4 {[%clk 00:53:12]} {[%emt 00:00:11]} Bxf3 {[%clk
00:46:26]} {[%emt 00:00:42]} 16. Bxf3 {[%clk 00:53:16]} {[%emt 00:00:06]} Bxe5
{[%clk 00:45:41]} {[%emt 00:00:55]} 17. Ng5 {[%clk 00:53:06]} {[%emt 00:00:20]}
h5 {[%clk 00:44:32]} {[%emt 00:01:19]} 18. Bxh5 {[%clk 00:53:02]} {[%emt
00:00:15]} Qd5 {[%clk 00:44:24]} {[%emt 00:00:18]} 19. Bf3 {[%clk 00:53:00]}
{[%emt 00:00:11]} 1-0

[Event "Kwalificatie NJK A Groningen"]
[Site "Hoogkerk, Netherlands"]
[Date "2023.02.18"]
[Round "4.8"]
[White "Staal, Ryan"]
[Black "Venema, Katja"]
[Result "0-1"]
[TimeControl "55 min. + 10 sec./zet"]
[WhiteElo "1911"]
[BlackElo "1683"]

1. e4 {[%clk 00:55:18]} {[%emt 00:00:01]} e6 {[%clk 00:55:12]} {[%emt
00:00:08]} 2. d4 {[%clk 00:55:24]} {[%emt 00:00:04]} d5 {[%clk 00:55:16]}
{[%emt 00:00:07]} 3. exd5 {[%clk 00:55:26]} {[%emt 00:00:08]} exd5 {[%clk
00:55:18]} {[%emt 00:00:07]} 4. Nc3 {[%clk 00:55:33]} {[%emt 00:00:03]} Nf6
{[%clk 00:55:09]} {[%emt 00:00:19]} 5. Bg5 {[%clk 00:55:36]} {[%emt 00:00:07]}
Bb4 {[%clk 00:54:54]} {[%emt 00:00:25]} 6. Nf3 {[%clk 00:55:21]} {[%emt
00:00:26]} O-O {[%clk 00:54:35]} {[%emt 00:00:28]} 7. a3 {[%clk 00:55:02]}
{[%emt 00:00:30]} Bxc3+ {[%clk 00:54:03]} {[%emt 00:00:42]} 8. bxc3 {[%clk
00:55:10]} {[%emt 00:00:01]} Re8+ {[%clk 00:53:42]} {[%emt 00:00:31]} 9. Be2
{[%clk 00:55:13]} {[%emt 00:00:08]} Qe7 {[%clk 00:53:24]} {[%emt 00:00:28]} 10.
Bxf6 {[%clk 00:53:54]} {[%emt 00:01:29]} Qxf6 {[%clk 00:53:22]} {[%emt
00:00:11]} 11. O-O {[%clk 00:53:55]} {[%emt 00:00:09]} Bg4 {[%clk 00:52:45]}
{[%emt 00:00:47]} 12. Re1 {[%clk 00:53:44]} {[%emt 00:00:21]} Nd7 {[%clk
00:51:07]} {[%emt 00:01:48]} 13. h3 {[%clk 00:53:42]} {[%emt 00:00:12]} Bf5
{[%clk 00:50:05]} {[%emt 00:01:13]} 14. Qd2 {[%clk 00:52:45]} {[%emt 00:01:06]}
Qd6 {[%clk 00:48:42]} {[%emt 00:01:33]} 15. c4 {[%clk 00:51:23]} {[%emt
00:01:33]} Nf6 {[%clk 00:45:24]} {[%emt 00:03:27]} 16. cxd5 {[%clk 00:50:19]}
{[%emt 00:01:15]} Ne4 {[%clk 00:42:29]} {[%emt 00:03:04]} 17. Qb4 {[%clk
00:48:04]} {[%emt 00:02:25]} Qxd5 {[%clk 00:39:21]} {[%emt 00:03:18]} 18. Bc4
{[%clk 00:47:29]} {[%emt 00:00:45]} Qd6 {[%clk 00:35:58]} {[%emt 00:03:34]} 19.
Ne5 {[%clk 00:44:38]} {[%emt 00:03:00]} Bg6 {[%clk 00:35:23]} {[%emt 00:00:46]}
20. Nxg6 {[%clk 00:43:45]} {[%emt 00:01:02]} hxg6 {[%clk 00:35:10]} {[%emt
00:00:23]} 21. Qxb7 {[%clk 00:41:55]} {[%emt 00:02:00]} Qxd4 {[%clk 00:34:26]}
{[%emt 00:00:54]} 22. Qb3 {[%clk 00:35:49]} {[%emt 00:06:16]} Qxf2+ {[%clk
00:34:01]} {[%emt 00:00:35]} 23. Kh2 {[%clk 00:35:26]} {[%emt 00:00:34]} Qf4+
{[%clk 00:26:59]} {[%emt 00:07:12]} 24. Kg1 {[%clk 00:34:41]} {[%emt 00:00:55]}
Nd2 {[%clk 00:25:48]} {[%emt 00:01:21]} 25. Rxe8+ {[%clk 00:32:44]} {[%emt
00:02:06]} Rxe8 {[%clk 00:25:52]} {[%emt 00:00:06]} 26. Qb5 {[%clk 00:31:48]}
{[%emt 00:01:07]} Qd4+ {[%clk 00:24:40]} {[%emt 00:01:22]} 27. Kh2 {[%clk
00:31:29]} {[%emt 00:00:29]} Re5 {[%clk 00:23:04]} {[%emt 00:01:46]} 28. Qb8+
{[%clk 00:29:06]} {[%emt 00:02:33]} Kh7 {[%clk 00:23:05]} {[%emt 00:00:08]} 0-1

[Event "Kwalificatie NJK A Groningen"]
[Site "Hoogkerk, Netherlands"]
[Date "2023.02.18"]
[Round "4.9"]
[White "Aarts, Joaquin"]
[Black "Lankester, Felix"]
[Result "1-0"]
[TimeControl "55 min. + 10 sec./zet"]
[WhiteElo "1804"]
[BlackElo "1600"]

1. d4 {[%clk 00:55:18]} {[%emt 00:00:02]} e6 {[%clk 00:55:19]} {[%emt
00:00:01]} 2. c4 {[%clk 00:55:21]} {[%emt 00:00:07]} d5 {[%clk 00:55:26]}
{[%emt 00:00:04]} 3. Nc3 {[%clk 00:55:26]} {[%emt 00:00:04]} c6 {[%clk
00:55:34]} {[%emt 00:00:02]} 4. cxd5 {[%clk 00:53:45]} {[%emt 00:01:51]} exd5
{[%clk 00:55:36]} {[%emt 00:00:07]} 5. Qc2 {[%clk 00:53:46]} {[%emt 00:00:09]}
Nf6 {[%clk 00:55:07]} {[%emt 00:00:40]} 6. Bg5 {[%clk 00:53:52]} {[%emt
00:00:04]} Be7 {[%clk 00:54:43]} {[%emt 00:00:33]} 7. e3 {[%clk 00:53:57]}
{[%emt 00:00:06]} Na6 {[%clk 00:53:25]} {[%emt 00:01:28]} 8. a3 {[%clk
00:53:54]} {[%emt 00:00:13]} Nc7 {[%clk 00:53:14]} {[%emt 00:00:20]} 9. Bd3
{[%clk 00:52:06]} {[%emt 00:01:58]} h6 {[%clk 00:53:06]} {[%emt 00:00:19]} 10.
Bh4 {[%clk 00:52:11]} {[%emt 00:00:05]} O-O {[%clk 00:52:31]} {[%emt 00:00:45]}
11. Nge2 {[%clk 00:52:14]} {[%emt 00:00:07]} b5 {[%clk 00:51:50]} {[%emt
00:00:51]} 12. O-O {[%clk 00:50:45]} {[%emt 00:01:38]} Ne6 {[%clk 00:50:06]}
{[%emt 00:01:54]} 13. f3 {[%clk 00:47:37]} {[%emt 00:03:18]} Qb6 {[%clk
00:49:09]} {[%emt 00:01:08]} 14. Rad1 {[%clk 00:45:52]} {[%emt 00:01:54]} Kh8
{[%clk 00:48:14]} {[%emt 00:01:06]} 15. Kh1 {[%clk 00:44:24]} {[%emt 00:01:38]}
Bd7 {[%clk 00:47:19]} {[%emt 00:01:05]} 16. e4 {[%clk 00:42:27]} {[%emt
00:02:06]} dxe4 {[%clk 00:47:13]} {[%emt 00:00:16]} 17. fxe4 {[%clk 00:42:17]}
{[%emt 00:00:21]} Nxd4 {[%clk 00:46:13]} {[%emt 00:01:09]} 18. Nxd4 {[%clk
00:42:13]} {[%emt 00:00:15]} Qxd4 {[%clk 00:46:19]} {[%emt 00:00:03]} 19. Be2
{[%clk 00:37:55]} {[%emt 00:04:28]} Qe5 {[%clk 00:42:18]} {[%emt 00:04:12]} 20.
Bxf6 {[%clk 00:37:48]} {[%emt 00:00:16]} gxf6 {[%clk 00:42:17]} {[%emt
00:00:11]} 21. Rxd7 {[%clk 00:34:33]} {[%emt 00:03:26]} Bd6 {[%clk 00:41:21]}
{[%emt 00:01:05]} 22. g3 {[%clk 00:34:29]} {[%emt 00:00:14]} Rg8 {[%clk
00:41:02]} {[%emt 00:00:30]} 23. Qd2 {[%clk 00:33:06]} {[%emt 00:01:32]} Rxg3
{[%clk 00:39:35]} {[%emt 00:01:36]} 24. Qxd6 {[%clk 00:32:54]} {[%emt
00:00:23]} 1-0